fUST/lending_fUST_20250311
["ID","MTS","AMOUNT","RATE_DAILY","PERIOD"]
[355894419,1741693845610,-500.0,0.00032876,7]
[355894420,1741693845620,-500.0,0.00032876,7]
[355894421,1741693845629,-500.0,0.00032876,7]
[355894422,1741693845638,-500.0,0.00032876,7]
[355894423,1741693845648,-500.0,0.00032876,7]
[355894424,1741693845659,-500.0,0.00032876,7]
[355894425,1741693845669,-500.0,0.00032876,7]
[355894426,1741693845679,-500.0,0.00032876,7]
[355894427,1741693845689,-500.0,0.00032876,7]
[355894428,1741693845699,-500.0,0.00032876,7]
[355894429,1741693845709,-500.0,0.00032876,7]
[355894430,1741693845718,-500.0,0.00032876,7]
[355894431,1741693845728,-446.72159878,0.00032876,7]
[355894432,1741693845738,-500.0,0.00032876,7]
[355894433,1741693845747,-500.0,0.00032876,7]
[355894434,1741693845757,-500.0,0.00032876,7]
[355894435,1741693845766,-1164.25,0.00032876,7]
[355894436,1741693845776,-500.0,0.00032876,7]
[355894437,1741693845787,-500.0,0.00032876,7]
[355894438,1741693845797,-807.36,0.00032876,3]
[355894439,1741693845806,-500.0,0.00032876,7]
[355894440,1741693845818,-633.13402057,0.00032876,7]
[355894441,1741693845828,-479.03597165,0.00032876,7]
[355894442,1741693845837,-500.0,0.00032876,7]
[355894443,1741693845847,-500.0,0.00032876,7]
[355894444,1741693845858,-535.01994078,0.00032876,7]
[355894445,1741693845868,-500.0,0.00032876,7]
[355894446,1741693845878,-500.0,0.00032876,7]
[355894447,1741693845888,-920.66,0.00032876,7]
[355894448,1741693845899,-841.31,0.00032876,7]
[355894449,1741693845910,-500.0,0.00032876,7]
[355894450,1741693845919,-518.69000066,0.00032876,7]
[355894451,1741693845929,-829.94,0.00032876,7]
[355894452,1741693845939,-500.0,0.00032876,7]
[355894453,1741693845949,-500.0,0.00032876,7]
[355894454,1741693845958,-500.0,0.00032876,7]
[355894455,1741693845968,-500.0,0.00032876,7]
[355894457,1741693845977,-500.0,0.00032876,7]
[355894459,1741693845987,-500.0,0.00032876,7]
[355894461,1741693845996,-538.74203086,0.00032876,7]
[355894462,1741693846006,-500.0,0.00032876,7]
[355894463,1741693846015,-679.48,0.00032876,7]
[355894464,1741693846024,-500.0,0.00032876,7]
[355894465,1741693846034,-500.0,0.00032876,7]
[355894466,1741693846043,-500.0,0.00032876,7]
[355894467,1741693846052,-500.0,0.00032876,7]
[355894469,1741693846062,-500.0,0.00032876,7]
[355894470,1741693846072,-630.02,0.00032876,7]
[355894471,1741693846082,-500.0,0.00032876,7]
[355894472,1741693846091,-510.62572107,0.00032876,7]
[355894473,1741693846101,-500.0,0.00032876,7]
[355894474,1741693846110,-726.55,0.00032876,7]
[355894475,1741693846120,-520.9388393,0.00032876,7]
[355894476,1741693846129,-538.01,0.00032876,7]
[355894477,1741693846139,-1318.79,0.00032876,7]
[355894478,1741693846149,-500.0,0.00032876,7]
[355894479,1741693846159,-500.0,0.00032876,7]
[355894480,1741693846169,-500.0,0.00032876,7]
[355894481,1741693846179,-416.66666667,0.00032876,7]
[355894482,1741693846188,-500.0,0.00032876,7]
[355894483,1741693846199,-500.0,0.00032876,120]
[355894484,1741693846208,-500.0,0.00032876,7]
[355894485,1741693846217,-1000.0,0.00032876,2]
[355894486,1741693846227,-1000.0,0.00032876,2]
[355894487,1741693846237,-1000.0,0.00032876,2]
[355894488,1741693846246,-1000.0,0.00032876,2]
[355894489,1741693846256,-1000.0,0.00032876,2]
[355894490,1741693846266,-1000.0,0.00032876,2]
[355894491,1741693846275,-1000.0,0.00032876,2]
[355894492,1741693846286,-1000.0,0.00032876,2]
[355894493,1741693846296,-500.0,0.00032876,7]
[355894494,1741693846306,-1000.0,0.00032876,2]
[355894495,1741693846315,-385.65854043,0.00032876,2]
[355894496,1741693846325,-500.0,0.00032876,7]
[355894497,1741693846335,-500.0,0.00032876,7]
[355894498,1741693846344,-2980.32,0.00032876,7]
[355894499,1741693846354,-500.0,0.00032876,7]
[355894500,1741693846364,-500.0,0.00032876,7]
[355894501,1741693846373,-502.27,0.00032876,7]
[355894502,1741693846383,-500.0,0.00032876,7]
[355894503,1741693846393,-500.0,0.00032876,7]
[355894504,1741693846403,-15572.92107546,0.00032876,3]
[355894505,1741693846412,-1066.91,0.00032876,7]
[355894506,1741693846421,-1022.06,0.00032876,7]
[355894507,1741693846430,-500.0,0.00032876,7]
[355894508,1741693846440,-549.76171085,0.00032876,7]
[355894509,1741693846449,-500.0,0.00032876,7]
[355894510,1741693846459,-500.0,0.00032876,7]
[355894511,1741693846468,-500.0,0.00032876,7]
[355894512,1741693846478,-500.0,0.00032876,7]
[355894513,1741693846487,-500.0,0.00032876,7]
[355894514,1741693846497,-760.7,0.00032876,7]
[355894515,1741693846506,-1520.1,0.00032876,7]
[355894516,1741693846516,-500.0,0.00032876,7]
[355894517,1741693846526,-500.0,0.00032876,7]
[355894518,1741693846535,-500.0,0.00032876,7]
[355894519,1741693846545,-500.0,0.00032876,2]
[355894520,1741693846554,-687.47,0.00032876,7]
[355894521,1741693846564,-500.0,0.00032876,7]
[355894522,1741693846573,-511.54,0.00032876,7]
[355894523,1741693846582,-500.0,0.00032876,7]
[355894524,1741693846592,-798.58,0.00032876,7]
[355894525,1741693846601,-893.83,0.00032876,7]
[355894527,1741693846610,-794.48,0.00032876,7]
[355894529,1741693846620,-500.0,0.00032876,7]
[355894531,1741693846629,-529.29825262,0.00032876,7]
[355894533,1741693846640,-500.0,0.00032876,7]
[355894535,1741693846650,-500.0,0.00032876,7]
[355894538,1741693846659,-500.0,0.00032876,7]
[355894540,1741693846775,-556.42914908,0.00032876,7]
[355894541,1741693846784,-500.0,0.00032876,7]
[355894542,1741693846794,-5606.8,0.00032876,7]
[355894543,1741693846803,-516.88467526,0.00032876,7]
[355894544,1741693846812,-597.49,0.00032876,7]
[355894545,1741693846824,-509.2297945,0.00032876,7]
[355894546,1741693846835,-190.640925,0.00032876,7]
[355894547,1741693846843,-500.0,0.00032876,7]
[355894548,1741693846853,-937.7,0.00032876,7]
[355894549,1741693846864,-500.0,0.00032876,7]
[355894550,1741693846873,-500.0,0.00032876,7]
[355894551,1741693846883,-1569.23,0.00032876,7]
[355894552,1741693846893,-500.0,0.00032876,7]
[355894553,1741693846904,-2192.56,0.00032876,7]
[355894554,1741693846914,-500.0,0.00032876,7]
[355894555,1741693846923,-500.0,0.00032876,7]
[355894556,1741693846932,-500.0,0.00032876,7]
[355894557,1741693846941,-500.0,0.00032876,7]
[355894558,1741693846950,-500.0,0.00032876,7]
[355894559,1741693846959,-1864.01,0.00032876,7]
[355894560,1741693846968,-7718.38,0.00032876,7]
[355894561,1741693846978,-860.11,0.00032876,7]
[355894562,1741693846987,-500.0,0.00032876,7]
[355894563,1741693846996,-500.0,0.00032876,7]
[355894564,1741693847005,-1264.01,0.00032876,7]
[355894565,1741693847015,-500.0,0.00032876,7]
[355894566,1741693847025,-500.0,0.00032876,7]
[355894567,1741693847034,-500.0,0.00032876,7]
[355894568,1741693847043,-1311.26,0.00032876,7]
[355894569,1741693847053,-524.72619281,0.00032876,7]
[355894570,1741693847062,-507.92,0.00032876,7]
[355894571,1741693847072,-500.0,0.00032876,7]
[355894572,1741693847081,-500.0,0.00032876,7]
[355894573,1741693847091,-1098.83,0.00032876,7]
[355894574,1741693847100,-180220.75,0.00032876,7]
[355894575,1741693847110,-500.0,0.00032876,7]
[355894576,1741693847120,-500.0,0.00032876,7]
[355894577,1741693847129,-513.71147935,0.00032876,7]
[355894578,1741693847141,-500.0,0.00032876,7]
[355894579,1741693847150,-1489.5,0.00032876,7]
[355894580,1741693847160,-346.92783254,0.00032876,7]
[355894581,1741693847169,-500.0,0.00032876,7]
[355894582,1741693847179,-500.0,0.00032876,7]
[355894583,1741693847189,-1061.34,0.00032876,7]
[355894584,1741693847199,-500.0,0.00032876,7]
[355894585,1741693847208,-500.0,0.00032876,7]
[355894586,1741693847218,-502.67641493,0.00032876,7]
[355894587,1741693847227,-1317.81,0.00032876,7]
[355894588,1741693847237,-1369.42,0.00032876,7]
[355894589,1741693847246,-728.56,0.00032876,7]
[355894590,1741693847256,-1409.57,0.00032876,7]
[355894591,1741693847266,-500.0,0.00032876,7]
[355894592,1741693847276,-500.0,0.00032876,7]
[355894593,1741693847286,-500.0,0.00032876,7]
[355894594,1741693847296,-500.0,0.00032876,7]
[355894595,1741693847306,-406.259833,0.00032876,7]
[355894596,1741693847316,-406.259833,0.00032876,7]
[355894597,1741693847326,-500.0,0.00032876,7]
[355894598,1741693847336,-406.259833,0.00032876,7]
[355894599,1741693847346,-406.259833,0.00032876,7]
[355894600,1741693847355,-406.259833,0.00032876,7]
[355894601,1741693847364,-826.4,0.00032876,7]
[355894602,1741693847374,-500.0,0.00032876,7]
[355894603,1741693847384,-910.57,0.00032876,7]
[355894604,1741693847394,-406.259833,0.00032876,7]
[355894605,1741693847403,-1437.01,0.00032876,7]
[355894606,1741693847414,-406.259833,0.00032876,7]
[355894607,1741693847423,-406.259833,0.00032876,7]
[355894608,1741693847446,-406.259833,0.00032876,7]
[355894609,1741693847463,-607.78,0.00032876,7]
[355894610,1741693847485,-406.259833,0.00032876,7]
[355894611,1741693847505,-406.259833,0.00032876,7]
[355894612,1741693847522,-3752.15,0.00032876,7]
[355894613,1741693847542,-500.0,0.00032876,7]
[355894614,1741693847559,-500.0,0.00032876,7]
[355894615,1741693847574,-406.259833,0.00032876,7]
[355894616,1741693847595,-406.259833,0.00032876,7]
[355894617,1741693847615,-406.259833,0.00032876,7]
[355894618,1741693847633,-406.259833,0.00032876,7]
[355894619,1741693847647,-406.259833,0.00032876,7]
[355894620,1741693847665,-406.259833,0.00032876,7]
[355894621,1741693847681,-500.0,0.00032876,7]
[355894622,1741693847696,-406.259833,0.00032876,7]
[355894623,1741693847711,-905.84,0.00032876,7]
[355894624,1741693847726,-608.21,0.00032876,7]
[355894625,1741693847741,-500.0,0.00032876,7]
[355894626,1741693847756,-810.39,0.00032876,7]
[355894627,1741693847772,-1158.64,0.00032876,7]
[355894628,1741693847787,-6967.19,0.00032876,7]
[355894629,1741693847801,-524.60920292,0.00032876,7]
[355894630,1741693847819,-500.0,0.00032876,7]
[355894631,1741693847835,-523.00752105,0.00032876,7]
[355894632,1741693847850,-500.0,0.00032876,7]
[355894633,1741693847867,-1122.41,0.00032876,7]
[355894634,1741693847882,-23603.54,0.00032876,7]
[355894635,1741693847897,-500.0,0.00032876,7]
[355894636,1741693847913,-155.59321459,0.00032876,7]
[355894637,1741693847929,-2753.87,0.00032876,7]
[355894638,1741693847943,-1061.27,0.00032876,7]
[355894639,1741693847958,-500.0,0.00032876,7]
[355894640,1741693847974,-518.00811632,0.00032876,7]
[355894641,1741693847990,-500.0,0.00032876,7]
[355894642,1741693848005,-632.01777773,0.00032876,7]
[355894643,1741693848020,-5699.02,0.00032876,7]
[355894644,1741693848036,-828.28,0.00032876,7]
[355894645,1741693848052,-500.0,0.00032876,7]
[355894646,1741693848068,-500.0,0.00032876,7]
[355894647,1741693848086,-500.0,0.00032876,7]
[355894648,1741693848101,-520.07846934,0.00032876,7]
[355894649,1741693848117,-500.0,0.00032876,7]
[355894650,1741693848135,-500.0,0.00032876,7]
[355894651,1741693848152,-1551.34,0.00032876,7]
[355894652,1741693848168,-500.0,0.00032876,7]
[355894653,1741693848185,-500.0,0.00032876,7]
[355894654,1741693848203,-500.0,0.00032876,7]
[355894655,1741693848220,-500.0,0.00032876,7]
[355894656,1741693848237,-500.0,0.00032876,7]
[355894657,1741693848253,-500.0,0.00032876,7]
[355894658,1741693848270,-500.0,0.00032876,7]
[355894659,1741693848287,-1491.39,0.00032876,7]
[355894660,1741693848303,-3161.81,0.00032876,7]
[355894661,1741693848321,-500.0,0.00032876,7]
[355894662,1741693848338,-500.0,0.00032876,7]
[355894663,1741693848356,-500.0,0.00032876,7]
[355894664,1741693848374,-500.0,0.00032876,7]
[355894665,1741693848395,-500.0,0.00032876,7]
[355894666,1741693848415,-500.0,0.00032876,7]
[355894667,1741693848433,-500.0,0.00032876,7]
[355894668,1741693848450,-500.0,0.00032876,7]
[355894669,1741693848468,-500.0,0.00032876,7]
[355894670,1741693848485,-515.02983726,0.00032876,7]
[355894671,1741693848499,-6215.66,0.00032876,7]
[355894672,1741693848510,-500.0,0.00032876,7]
[355894673,1741693848521,-500.0,0.00032876,7]
[355894674,1741693848532,-1755.39,0.00032876,7]
[355894675,1741693848542,-620.95,0.00032876,7]
[355894676,1741693848791,-1515.18,0.00032876,7]
[355894677,1741693848828,-845.87,0.00032876,7]
[355894678,1741693848838,-500.0,0.00032876,7]
[355894679,1741693848850,-500.0,0.00032876,7]
[355894680,1741693848861,-595.5,0.00032876,7]
[355894681,1741693848871,-941.02,0.00032876,7]
[355894682,1741693848880,-500.0,0.00032876,7]
[355894683,1741693848893,-528.48122659,0.00032876,7]
[355894684,1741693848904,-500.0,0.00032876,7]
[355894685,1741693848913,-500.0,0.00032876,7]
[355894686,1741693848924,-544.21,0.00032876,7]
[355894687,1741693848934,-500.0,0.00032876,7]
[355894688,1741693848944,-3355.07,0.00032876,7]
[355894689,1741693848954,-1091.02,0.00032876,7]
[355894690,1741693848964,-865.43,0.00032876,7]
[355894691,1741693848973,-983.16,0.00032876,7]
[355894692,1741693848983,-3637.15,0.00032876,7]
[355894693,1741693848993,-4582.79,0.00032876,7]
[355894694,1741693849003,-500.0,0.00032876,7]
[355894695,1741693849013,-500.0,0.00032876,7]
[355894696,1741693849022,-500.0,0.00032876,7]
[355894697,1741693849032,-3746.84,0.00032876,7]
[355894698,1741693849042,-622.19,0.00032876,7]
[355894699,1741693849051,-500.0,0.00032876,7]
[355894700,1741693849061,-828.24,0.00032876,7]
[355894701,1741693849070,-500.0,0.00032876,7]
[355894702,1741693849080,-500.0,0.00032876,7]
[355894703,1741693849090,-1794.71,0.00032876,7]
[355894704,1741693849101,-500.0,0.00032876,7]
[355894705,1741693849111,-500.0,0.00032876,7]
[355894706,1741693849120,-500.0,0.00032876,7]
[355894707,1741693849130,-821.4,0.00032876,7]
[355894708,1741693849142,-500.0,0.00032876,7]
[355894709,1741693849153,-1425.51,0.00032876,7]
[355894710,1741693849163,-500.0,0.00032876,7]
[355894711,1741693849174,-500.0,0.00032876,7]
[355894712,1741693849184,-627.363651,0.00032876,7]
[355894713,1741693849195,-500.0,0.00032876,7]
[355894714,1741693849206,-500.0,0.00032876,7]
[355894715,1741693849217,-502.48961174,0.00032876,7]
[355894716,1741693849228,-642.64086005,0.00032876,7]
[355894717,1741693849239,-1320.53,0.00032876,7]
[355894718,1741693849250,-500.0,0.00032876,7]
[355894719,1741693849260,-1125.71,0.00032876,7]
[355894720,1741693849270,-500.0,0.00032876,7]
[355894721,1741693849280,-500.0,0.00032876,7]
[355894722,1741693849289,-500.0,0.00032876,7]
[355894723,1741693849300,-500.0,0.00032876,7]
[355894724,1741693849310,-500.0,0.00032876,7]
[355894725,1741693849319,-500.0,0.00032876,7]
[355894726,1741693849329,-500.0,0.00032876,7]
[355894727,1741693849339,-1137.53,0.00032876,7]
[355894728,1741693849349,-1376.66,0.00032876,7]
[355894729,1741693849359,-500.0,0.00032876,7]
[355894730,1741693849369,-1444.21,0.00032876,7]
[355894731,1741693849378,-7116.89,0.00032876,7]
[355894732,1741693849390,-500.0,0.00032876,7]
[355894733,1741693849400,-889.73,0.00032876,7]
[355894734,1741693849410,-375.26764459,0.00032876,7]
[355894735,1741693849421,-500.0,0.00032876,7]
[355894736,1741693849430,-965.61,0.00032876,7]
[355894737,1741693849440,-500.0,0.00032876,7]
[355894738,1741693849449,-905.96,0.00032876,7]
[355894739,1741693849458,-500.0,0.00032876,7]
[355894740,1741693849469,-2156.15,0.00032876,7]
[355894741,1741693849479,-500.0,0.00032876,7]
[355894742,1741693849489,-512.99086167,0.00032876,7]
[355894743,1741693849499,-986.55,0.00032876,7]
[355894744,1741693849509,-500.0,0.00032876,7]
[355894745,1741693849519,-500.0,0.00032876,7]
[355894746,1741693849529,-500.0,0.00032876,7]
[355894747,1741693849539,-542.35972909,0.00032876,7]
[355894748,1741693849550,-1378.11,0.00032876,7]
[355894749,1741693849560,-500.0,0.00032876,7]
[355894750,1741693849570,-1399.68,0.00032876,7]
[355894751,1741693849580,-500.0,0.00032876,7]
[355894752,1741693849590,-500.0,0.00032876,7]
[355894753,1741693849600,-500.0,0.00032876,7]
[355894754,1741693849610,-1173.88,0.00032876,7]
[355894755,1741693849620,-712.69,0.00032876,7]
[355894756,1741693849629,-500.0,0.00032876,7]
[355894757,1741693849641,-500.0,0.00032876,7]
[355894758,1741693849651,-500.0,0.00032876,7]
[355894759,1741693849661,-500.0,0.00032876,7]
[355894760,1741693849671,-500.0,0.00032876,7]
[355894761,1741693849681,-500.0,0.00032876,7]
[355894762,1741693849692,-500.0,0.00032876,7]
[355894763,1741693849702,-500.0,0.00032876,7]
[355894764,1741693849712,-270.83918095,0.00032876,7]
[355894765,1741693849723,-500.0,0.00032876,7]
[355894766,1741693849733,-500.0,0.00032876,7]
[355894767,1741693849743,-500.0,0.00032876,7]
[355894768,1741693849753,-500.0,0.00032876,7]
[355894769,1741693849763,-439.26256697,0.00032876,7]
[355894770,1741693849772,-505.4777875,0.00032876,7]
[355894771,1741693849783,-500.0,0.00032876,7]
[355894772,1741693849794,-1037.77,0.00032876,7]
[355894773,1741693849803,-533.2742747,0.00032876,7]
[355894774,1741693849813,-500.0,0.00032876,7]
[355894775,1741693849827,-1231.45,0.00032876,7]
[355894776,1741693849837,-6223.0,0.00032876,7]
[355894777,1741693849847,-883.62,0.00032876,7]
[355894778,1741693849858,-500.0,0.00032876,7]
[355894779,1741693849868,-541.53558708,0.00032876,7]
[355894780,1741693849878,-500.0,0.00032876,7]
[355894781,1741693849888,-500.0,0.00032876,7]
[355894782,1741693849900,-500.0,0.00032876,7]
[355894783,1741693849909,-1055.92,0.00032876,7]
[355894784,1741693849919,-500.0,0.00032876,7]
[355894785,1741693849929,-903.3,0.00032876,7]
[355894786,1741693849938,-500.0,0.00032876,7]
[355894787,1741693849947,-500.0,0.00032876,7]
[355894788,1741693849957,-538.64,0.00032876,7]
[355894789,1741693849968,-500.0,0.00032876,7]
[355894790,1741693849978,-6586.59,0.00032876,7]
[355894791,1741693849988,-500.0,0.00032876,7]
[355894792,1741693849997,-200.0,0.00032876,7]
[355894793,1741693850008,-500.0,0.00032876,7]
[355894794,1741693850018,-500.0,0.00032876,7]
[355894795,1741693850028,-500.0,0.00032876,7]
[355894796,1741693850038,-788.72,0.00032876,7]
[355894797,1741693850048,-200.8803919,0.00032876,7]
[355894798,1741693850058,-166.0,0.00032876,7]
[355894799,1741693850068,-168.0,0.00032876,7]
[355894800,1741693850078,-166.0,0.00032876,7]
[355894801,1741693850088,-160.0,0.00032876,3]
[355894802,1741693850098,-168.0,0.00032876,7]
[355894803,1741693850107,-500.0,0.00032876,7]
[355894804,1741693850117,-168.0,0.00032876,7]
[355894805,1741693850128,-166.0,0.00032876,7]
[355894806,1741693850139,-500.0,0.00032876,7]
[355894807,1741693850149,-1659.94,0.00032876,7]
[355894808,1741693850159,-299.20946297,0.00032876,7]
[355894809,1741693850169,-166.0,0.00032876,7]
[355894810,1741693850179,-352.0,0.00032876,7]
[355894811,1741693850189,-514.81653651,0.00032876,7]
[355894812,1741693850199,-352.0,0.00032876,7]
[355894813,1741693850210,-352.0,0.00032876,7]
[355894814,1741693850220,-352.0,0.00032876,7]
[355894815,1741693850231,-352.0,0.00032876,7]
[355894816,1741693850241,-3068.76,0.00032876,7]
[355894817,1741693850251,-352.0,0.00032876,7]
[355894818,1741693850261,-594.34,0.00032876,7]
[355894819,1741693850271,-352.0,0.00032876,7]
[355894820,1741693850281,-316.0,0.00032876,7]
[355894821,1741693850290,-352.0,0.00032876,7]
[355894822,1741693850300,-316.0,0.00032876,7]
[355894823,1741693850309,-500.0,0.00032876,7]
[355894824,1741693850319,-316.0,0.00032876,7]
[355894825,1741693850328,-500.0,0.00032876,7]
[355894826,1741693850338,-352.0,0.00032876,7]
[355894827,1741693850349,-316.0,0.00032876,7]
[355894828,1741693850358,-500.0,0.00032876,7]
[355894829,1741693850368,-352.0,0.00032876,7]
[355894830,1741693850377,-316.0,0.00032876,7]
[355894831,1741693850388,-352.0,0.00032876,7]
[355894832,1741693850398,-316.0,0.00032876,7]
[355894833,1741693850408,-316.0,0.00032876,7]
[355894834,1741693850418,-490.74357343,0.00032876,7]
[355894835,1741693850428,-316.0,0.00032876,7]
[355894836,1741693850438,-500.0,0.00032876,7]
[355894837,1741693850448,-506.33,0.00032876,7]
[355894838,1741693850459,-316.0,0.00032876,7]
[355894839,1741693850469,-316.0,0.00032876,7]
[355894840,1741693850479,-316.0,0.00032876,7]
[355894841,1741693850489,-500.0,0.00032876,7]
[355894842,1741693850499,-316.0,0.00032876,7]
[355894843,1741693850509,-773.8,0.00032876,7]
[355894844,1741693850519,-570.02,0.00032876,7]
[355894845,1741693850530,-500.0,0.00032876,7]
[355894846,1741693850540,-21525.75,0.00032876,7]
[355894847,1741693850549,-316.0,0.00032876,7]
[355894848,1741693850558,-316.0,0.00032876,7]
[355894849,1741693850568,-500.0,0.00032876,7]
[355894850,1741693850578,-500.0,0.00032876,7]
[355894851,1741693850588,-316.0,0.00032876,7]
[355894852,1741693850597,-8122.22055381,0.00032876,10]
[355894853,1741693850607,-151.0,0.00032877,14]
[355894854,1741693850617,-151.0,0.00032877,14]
[355894855,1741693850627,-151.0,0.00032877,14]
[355894856,1741693850638,-151.0,0.00032877,14]
[355894857,1741693850647,-151.0,0.00032877,14]
[355894858,1741693850657,-151.0,0.00032877,14]
[355894859,1741693850667,-151.0,0.00032877,14]
[355894860,1741693850676,-151.0,0.00032877,14]
[355894861,1741693850686,-151.0,0.00032877,14]
[355894862,1741693850696,-266.988702,0.00032877,14]
[355894863,1741693850706,-159.47,0.00032899,2]
[355894864,1741693850716,-159.47,0.00032899,2]
[355894865,1741693850725,-159.47,0.00032899,2]
[355894866,1741693850735,-159.47,0.00032899,2]
[355894867,1741693850744,-159.47,0.00032899,2]
[355894868,1741693850753,-159.47,0.00032899,2]
[355894869,1741693850763,-354.438902,0.000329,14]
[355894870,1741693850772,-354.438902,0.000329,14]
[355894871,1741693850782,-919.178837,0.000329,14]
[355894872,1741693850792,-919.178837,0.000329,14]
[355894873,1741693850802,-151.0,0.000329,15]
[355894874,1741693850812,-151.0,0.000329,10]
[355894875,1741693850824,-151.0,0.000329,16]
[355894876,1741693850835,-456.2,0.000329,30]
[355894877,1741693850844,-13347.89731711,0.000329,2]
[355894878,1741693850855,-622.2,0.00032901,2]
[355894879,1741693850864,-645.2214,0.00032956,2]
[355894880,1741693850874,-500.0,0.00032973,5]
[355894881,1741693850885,-500.0,0.00032973,5]
[355894882,1741693850897,-501.27502376,0.00032973,3]
[355894883,1741693850907,-500.0,0.00032973,5]
[355894884,1741693850917,-502.17573148,0.00032973,5]
[355894885,1741693850927,-300.48723561,0.00032973,5]
[355894886,1741693850936,-500.0,0.00032973,5]
[355894887,1741693850946,-500.0,0.00032973,5]
[355894888,1741693850956,-151.0728061,0.00032973,5]
[355894889,1741693850965,-151.33362888,0.00032973,5]
[355894890,1741693850975,-500.0,0.00032973,5]
[355894891,1741693850985,-500.0,0.00032973,5]
[355894892,1741693850995,-500.0,0.00032973,5]
[355894893,1741693851005,-500.0,0.00032973,5]
[355894894,1741693851015,-500.0,0.00032973,5]
[355894895,1741693851025,-524.55119073,0.00032973,5]
[355894896,1741693851034,-500.0,0.00032973,5]
[355894897,1741693851043,-500.0,0.00032973,5]
[355894898,1741693851053,-536.84043868,0.00032973,5]
[355894899,1741693851063,-500.0,0.00032973,5]
[355894900,1741693851074,-500.0,0.00032973,5]
[355894901,1741693851083,-500.0,0.00032973,5]
[355894902,1741693851094,-500.0,0.00032973,5]
[355894903,1741693851104,-500.0,0.00032973,5]
[355894904,1741693851114,-500.0,0.00032973,5]
[355894905,1741693851124,-500.0,0.00032973,5]
[355894906,1741693851135,-160.40903884,0.00032973,5]
[355894907,1741693851146,-500.0,0.00032973,5]
[355894908,1741693851160,-500.0,0.00032973,5]
[355894909,1741693851170,-548.31680066,0.00032973,5]
[355894910,1741693851180,-500.21248245,0.00032973,5]
[355894911,1741693851191,-172.59258293,0.00032973,5]
[355894912,1741693851202,-500.0,0.00032973,5]
[355894913,1741693851212,-500.0,0.00032973,5]
[355894914,1741693851223,-500.0,0.00032973,5]
[355894915,1741693851233,-500.0,0.00032973,2]
[355894916,1741693851244,-500.0,0.00032973,5]
[355894917,1741693851253,-500.0,0.00032973,5]
[355894918,1741693851391,-501.70508786,0.00032973,5]
[355894919,1741693851412,-500.0,0.00032973,5]
[355894920,1741693851422,-502.54789066,0.00032973,5]
[355894921,1741693851431,-500.0,0.00032973,4]
[355894922,1741693851441,-500.0,0.00032973,5]
[355894923,1741693851450,-557.5181955,0.00032973,5]
[355894924,1741693851460,-500.0,0.00032973,5]
[355894925,1741693851471,-500.0,0.00032973,5]
[355894926,1741693851480,-514.54064439,0.00032973,5]
[355894927,1741693851490,-500.0,0.00032973,5]
[355894928,1741693851500,-500.0,0.00032973,5]
[355894929,1741693851510,-500.0,0.00032973,5]
[355894930,1741693851519,-160.81694579,0.00032973,5]